Cogmind - Beta 15 --- EXPLORER MODE // 2025.07.22 @ 21:50:06 Player: GermanMO Result: Core destroyed Performance ------------- Evolutions (6) 3000 Regions Visited (14) 2800 Robots Destroyed (173) 865 Value Destroyed (6456) 6456 Prototype IDs (20) 400 Alien Tech Used (0) 0 Bonus (1950) 1950 TOTAL SCORE: 15471 Bonus ------- High Alert Combat Kills 78 Met Warlord at Base 500 MAIN.C Attacked Warlord 500 Warlord Defense Kills 1732 Friendly Fire -860 Cogmind --------- Core Integrity 0/1150 Matter 98/300 Energy 493/510 System Corruption 17% Temperature Critical (1306) Movement Walking (176) Ox1 Location -4/Factory Parts ------- > --- POWER (3) -------- Angular Momentum Engine Fission Core Improved Fusion Compressor > --- PROPULSION (6) --- Improved VSS Leg Improved VSS Leg Multireflex Exoskeleton Experimental Flexi-carbon Leg > --- UTILITY (7) ------ Improved Cryofiber Web Remote Force Field > --- WEAPON (4) ------- Dispersion Rifle Dispersion Rifle Heavy Wave Gun Improved KE Penetrator > --- INVENTORY (5) ---- RU-N14's Throwing Claymores v3 (3) Peak State ------------ > --- POWER ------------ Light Nuclear Core Antimatter Reactor Light Antimatter Reactor > --- PROPULSION ------- VTOL Module Impulse Thruster Impulse Thruster Cooled Field Propulsion Drive Field Propulsion Array > --- UTILITY ---------- Improved Cryofiber Web IFF Parser Microactuators Improved Phase Shifter Improved Power Shielding > --- WEAPON ----------- Helical Railgun Shock Maul > --- INVENTORY -------- Vortex Cannon Vortex Catalyst Activator RU-N14's Throwing Claymores v3 [Rating: 97] Favorites ----------- Power Light Nuclear Core Engine Light Ion Engine Power Core Light Nuclear Core Reactor Light Antimatter Reactor Propulsion Improved Flight Unit Leg Improved VSS Leg Hover Unit Hover Unit Flight Unit Improved Flight Unit Utility Improved Cryofiber Web Device Improved Cryofiber Web Processor Machine Analyzer Protection Propulsion Shielding Weapon Scythe Energy Gun Improved Spread Laser Energy Cannon Advanced Beam Cannon Ballistic Gun Helical Railgun Ballistic Cannon Improved Light Cannon Launcher Missile Launcher Special Weapon Improved Plasma Cutter Impact Weapon Shock Maul Slashing Weapon Scythe Build | -11 -10 -9 -9 -8 -7 -6 -5 -5 -5 -5 -4 -4 -4 -4 ------- Run | Yrd Mat Mat Sto Mat Fac Fac Fac Upp Upp War Pro Fac Was Fac Slots Evolved 13 | . 1 2 . 2 2 2 2 . . . . 2 . . Power 2 | . . 1 . . . 1 . . . . . . . . Propulsion 4 | . 1 1 . 2 . . . . . . . . . . Utility 5 | . . . . . 2 1 1 . . . . 1 . . Weapon 2 | . . . . . . . 1 . . . . 1 . . Parts Attached 100 | 3 3 14 9 5 6 6 4 4 . 9 12 10 3 12 Power 27 | 1 . 4 2 1 1 3 2 1 . 3 4 2 . 3 Engine 11 | 1 . 2 2 1 . . . 1 . 2 1 . . 1 Core 12 | . . 2 . . 1 2 2 . . . 3 . . 2 Reactor 4 | . . . . . . 1 . . . 1 . 2 . . Propulsion 32 | . 1 4 4 1 2 1 . . . 1 7 4 2 5 Treads . | . . . . . . . . . . . . . . . Leg 5 | . . . . . . . . . . . . . . 5 Wheel . | . . . . . . . . . . . . . . . Hover 1 | . 1 . . . . . . . . . . . . . Flight 26 | . . 4 4 1 2 1 . . . 1 7 4 2 . Utility 16 | 2 1 . 1 2 2 2 . 3 . . . 2 . 1 Device 10 | 1 . . 1 . 1 2 . 3 . . . 1 . 1 Storage . | . . . . . . . . . . . . . . . Processor 4 | 1 . . . 2 1 . . . . . . . . . Hackware . | . . . . . . . . . . . . . . . Protection 2 | . 1 . . . . . . . . . . 1 . . Artifact . | . . . . . . . . . . . . . . . Weapon 25 | . 1 6 2 1 1 . 2 . . 5 1 2 1 3 Energy Gun 9 | . . 2 1 . 1 . . . . 1 . 1 1 2 Energy Cannon 3 | . . 1 . . . . . . . 1 1 . . . Ballistic Gun 4 | . 1 1 . . . . . . . 1 . . . 1 Ballistic Cannon 2 | . . 1 . 1 . . . . . . . . . . Launcher 2 | . . . 1 . . . . . . 1 . . . . Special Weapon 2 | . . . . . . . 1 . . 1 . . . . Impact Weapon 1 | . . . . . . . . . . . . 1 . . Slashing Weapon 2 | . . 1 . . . . 1 . . . . . . . Piercing Weapon . | . . . . . . . . . . . . . . . Special Melee Weapon . | . . . . . . . . . . . . . . . Unidentified Prototypes 20 | . . 4 2 . 2 1 . . . 5 . 2 1 3 Corrupted Parts 2 | . . . . . . . . . . . . . 2 . System Corruption 3 | . . . . . . . . . . . . . 3 . Parts Lost 48 | . . 3 5 2 1 . 2 3 . 9 8 15 . . Power 17 | . . 3 2 1 1 . 1 1 . 3 2 3 . . Propulsion 14 | . . . 1 1 . . . 1 . 3 4 4 . . Utility 8 | . . . . . . . 1 . . 1 2 4 . . Weapon 9 | . . . 2 . . . . 1 . 2 . 4 . . Highest Loss Streak 6 | . . 2 2 2 1 . 2 3 . 5 4 6 . . To Critical Strikes 3 | . . . . . . . . . . 1 1 1 . . Average Backups 3 | 1 2 2 3 1 4 5 5 2 2 3 3 2 2 1 Power . | . . . . . . . . . . . . . . . Propulsion . | . . . . . . . . . . . . . . . Utility 1 | 1 1 1 1 1 3 4 4 2 2 . . . 1 . Weapon 1 | . . . 1 . . . . . . 3 3 2 1 1 Tool/Special . | . . . . . . . . . . . . . . . Unused Backups 5 | . . 1 . . 1 . . 1 . 2 . . . . Power . | . . . . . . . . . . . . . . . Propulsion 1 | . . 1 . . . . . . . . . . . . Utility 1 | . . . . . . . . . . 1 . . . . Weapon 2 | . . . . . 1 . . . . 1 . . . . Tool/Special 1 | . . . . . . . . 1 . . . . . . Average Slot Usage (%) 72 | . 30 76 84 77 90 91 76 76 72 77 54 61 7 48 Engine 4 | . 12 7 4 9 7 6 2 . . 1 . . . 3 Core 6 | . . 6 6 . 2 10 10 12 11 8 5 8 . 7 Flight 27 | . . 27 35 35 41 37 33 28 27 26 20 22 7 3 Device 10 | . . . 2 7 5 10 12 21 22 24 16 14 . 6 Processor 7 | . 12 10 10 8 19 13 5 5 5 5 . . . . Protection 2 | . 3 7 7 . . . . . . . . 3 . . Energy Gun 1 | . . 1 . . 6 6 . . . . 2 . . 7 Energy Cannon 2 | . . 7 6 . . . . . . . . . . . Ballistic Gun 1 | . 1 3 . . . . . . . . 5 3 . 1 Ballistic Cannon 1 | . . 3 . 5 . . . . . . . . . . Slashing Weapon 2 | . . . 4 8 7 6 5 5 5 3 . . . . Peak Build Rating 97 | 3 4 22 22 27 46 57 64 74 56 78 64 97 34 92 Average Rating 42 | 1 2 15 18 24 42 53 59 59 56 65 45 78 13 65 On Entrance 32 | . 2 2 16 17 27 42 54 64 56 56 55 42 13 34 Naked Turns . | . . . . . . . . . . . . . . . Heaviest Build 63 | 3 6 17 16 17 21 25 29 32 23 45 34 50 7 63 Greatest Support 105 | 3 3 19 19 24 32 33 33 33 27 27 24 40 21 105 Greatest Overweight (x) 5 | . 1 2 1 . 1 . . 1 . 2 5 1 2 2 Average Overweight (x) . | . . . . . . . . . . . . . . . Largest Inventory Capacity 5 | 5 5 5 5 5 5 5 5 5 5 5 5 5 5 5 Average Capacity 5 | 5 5 5 5 5 5 5 5 5 5 5 5 5 5 5 Most Carried 5 | 3 4 5 5 5 5 5 5 4 2 5 5 5 3 4 Average Carried 3 | 2 3 2 3 1 4 5 5 2 2 4 4 3 1 1 Final Capacity 5 | 5 5 5 5 5 5 5 5 5 5 5 5 5 5 5 Final Carried 5 | 3 4 4 2 5 5 5 5 2 2 5 4 1 1 1 Class Distribution -------------------- 34% | Hacker-Mutant 34% | Hacker-Sprinter 10% | Hacker-Scout 7% | Hacker-Gladiator 4% | Scavenger-Mutant 3% | Scavenger-Sprinter Dominant Class ---------------- Hacker-Mutant | -10/Materials Hacker-Mutant | -9/Materials Hacker-Sprinter | -9/Storage Hacker-Mutant | -8/Materials Hacker-Scout | -7/Factory Hacker-Scout | -6/Factory Hacker-Sprinter | -5/Factory Hacker-Sprinter | -5/Upper Caves Hacker-Sprinter | -5/Upper Caves Hacker-Gladiator | -5/Warlord Hacker-Mutant | -4/Proximity Caves Hacker-Sprinter | -4/Factory Hacker-Mutant | -4/Waste Hacker-Mutant | -4/Factory Resources | -11 -10 -9 -9 -8 -7 -6 -5 -5 -5 -5 -4 -4 -4 -4 ----------- Run | Yrd Mat Mat Sto Mat Fac Fac Fac Upp Upp War Pro Fac Was Fac Matter Collected 2682 | 183 47 470 606 255 115 11 107 68 . 186 335 146 . 153 Remotely . | . . . . . . . . . . . . . . . Salvage Created 7196 | . 56 1621 1182 212 115 102 257 1008 . 778 823 790 . 252 Parts 348 | . 8 105 59 16 5 5 19 12 . 22 40 39 . 18 Haulers Intercepted 10 | . . 5 3 2 . . . . . . . . . . Recyclers Shooed . | . . . . . . . . . . . . . . . Parts Field Recycled . | . . . . . . . . . . . . . . . Retrieved Matter . | . . . . . . . . . . . . . . . Parts Self-Destructed . | . . . . . . . . . . . . . . . Prevented . | . . . . . . . . . . . . . . . Kills | -11 -10 -9 -9 -8 -7 -6 -5 -5 -5 -5 -4 -4 -4 -4 ------- Run | Yrd Mat Mat Sto Mat Fac Fac Fac Upp Upp War Pro Fac Was Fac Combat Hostiles Destroyed 126 | . 2 29 21 6 2 . 7 3 . 13 20 15 . 8 Melee 15 | . . . 2 2 2 . 5 3 . . . 1 . . Guns 54 | . 2 17 . . . . . . . 3 20 4 . 8 Cannons 38 | . . 12 10 3 . . . . . 10 . 3 . . AOE 14 | . . . 8 . . . 2 . . . . 4 . . Classes Destroyed 17 | . 2 4 4 . 1 . 1 1 . 2 . 2 . . Worker 8 | . . . 2 . . . . . . . . 6 . . Builder 7 | . . . 2 . . 1 . . . . . 4 . . Hauler 10 | . . 5 3 2 . . . . . . . . . . Recycler 2 | . . . 1 . . 1 . . . . . . . . Operator 6 | . . 1 2 . . . 2 . . . . 1 . . Drone 1 | . . . . . . . 1 . . . . . . . Watcher 11 | . 1 4 2 . . . . . . . . 4 . . Swarmer 37 | . 2 5 . 3 . . 4 3 . . 11 3 . 6 Grunt 36 | . . 14 8 . . . . . . 8 4 2 . . Brawler 2 | . . . . . . . . . . . 2 . . . Duelist 3 | . . . 1 . . . . . . . 1 1 . . Sentry 31 | . . 10 12 3 1 . 1 . . . 2 2 . . Specialist 1 | . . . . . . . . . . . . 1 . . Hunter 4 | . . . . . 1 . 1 . . 2 . . . . Programmer 8 | . . . . . . . . . . . . 6 . 2 Behemoth 1 | . . . . . . . . . . 1 . . . . Striker 2 | . . . . . . . . . . 2 . . . . Thug 1 | . . . . . . . . . . 1 . . . . Savage 1 | . . . . . . . . 1 . . . . . . Bouncer 2 | . . . . . . . . . . 2 . . . . Best Kill Streak 16 | . 3 8 13 4 1 2 3 3 . 8 6 16 . 4 Combat Bots Only 8 | . 2 6 6 4 1 . 3 3 . 8 6 7 . 4 Max Kills in Single Turn 8 | . 1 1 2 1 1 2 1 1 . 2 2 8 . 1 Gunslinging 1 | . . . . . . . . . . . 1 . . . Exploded 3 | . . . 2 . . . 1 . . . . 3 . . Melee 1 | . . . 1 1 1 . 1 1 . . . 1 . . Uniques/NPCs Destroyed . | . . . . . . . . . . . . . . . Combat | -11 -10 -9 -9 -8 -7 -6 -5 -5 -5 -5 -4 -4 -4 -4 -------- Run | Yrd Mat Mat Sto Mat Fac Fac Fac Upp Upp War Pro Fac Was Fac Hostile Shots Fired 598 | . 8 114 79 18 31 . 56 22 3 47 70 99 . 51 Missed 224 | . 2 39 33 11 16 . 29 12 2 18 20 34 . 8 Hits 374 | . 6 75 46 7 15 . 27 10 1 29 50 65 . 43 Melee 6 | . . . 1 . . . . . . . 2 3 . . Projectile 368 | . 6 75 45 7 15 . 27 10 1 29 48 62 . 43 AOE 4 | . . . . . . . . . . 3 . 1 . . Critical Strikes 17 | . . 4 5 . . . 1 . . 1 1 3 . 2 Actively Blocked 2 | . . 1 . . . . . . . . . 1 . . Part Disruptions 2 | . . . . . . . . . . . . 2 . . Damage Taken 5395 | . 80 553 459 45 127 . 296 102 11 536 579 1338 28 1241 Core 2029 | . 57 174 118 14 65 . 16 9 11 123 160 361 . 921 Absorbed by Shields 105 | . . . . . . . . . . . . . . 105 Redirected to Shielding 134 | . . 7 24 . . . . . . . . 103 . . Ignored by Resistances 2530 | . 51 358 282 31 84 . 178 61 7 306 350 535 . 287 Regen/Repaired (Parts) 13 | . . . . . . . . . . 13 . . . . Core Remaining (%) 79 | 100 77 . 27 97 90 100 . . . . 68 . . . Volleys Fired 350 | . 5 106 76 16 . 4 3 . . 42 43 39 . 16 Largest 4 | . 1 2 2 1 . 1 1 . . 2 2 2 . 4 Hottest 297 | . 20 101 104 40 . 75 20 . . 88 83 88 . 297 Shots Fired 442 | . 5 156 79 16 . 4 3 . . 44 55 48 . 32 Gun 251 | . 5 103 . . . 4 . . . 24 55 28 . 32 Cannon 151 | . . 53 47 16 . . . . . 20 . 15 . . Launcher 36 | . . . 32 . . . . . . . . 4 . . Special 4 | . . . . . . . 3 . . . . 1 . . Kinetic 183 | . 5 78 . 16 . . . . . 14 43 22 . 5 Thermal 159 | . . 78 47 . . 4 3 . . . . . . 27 Explosive 33 | . . . 32 . . . . . . . . 1 . . Electromagnetic 6 | . . . . . . . . . . . . 6 . . Entropic 61 | . . . . . . . . . . 30 12 19 . . Robot Hit Streak 30 | . 5 27 22 8 . . . . . 23 30 15 . 8 Robot Miss Streak 3 | . . 2 2 1 . . . . . 3 3 2 . 3 Penetration Max 2 | . . . . . . . . . . 2 1 1 . . Secondary Targets 4 | . . . . . . . . . . . 2 . . 2 Max Gunslinging Chain 1 | . . . . . . . . . . . 1 . . 1 Shots Hit Robots 413 | . 5 124 71 19 7 . 22 19 . 38 41 49 . 18 Core Hits 205 | . 3 55 38 7 3 3 9 8 . 23 25 22 . 9 Critical Kills 4 | . . . 2 . . . . . . . 1 1 . . Critical Parts Destroyed 13 | . . . . . . . . . . 3 2 6 . 2 Critical Strikes 36 | . . 1 2 3 1 . 4 . . 8 3 12 . 2 Burn 1 | . . 1 . . . . . . . . . . . . Meltdown 2 | . . . 2 . . . . . . . . . . . Destroy 6 | . . . . . . . . . . . 3 1 . 2 Blast 1 | . . . . 1 . . . . . . . . . . Smash 7 | . . . . . . . . . . . . 7 . . Sever 8 | . . . . 2 1 . 4 . . . . 1 . . Detonate 3 | . . . . . . . . . . 3 . . . . Sunder 8 | . . . . . . . . . . 5 . 3 . . Melee Attacks 172 | . . 1 16 13 34 16 51 21 . . . 20 . . Impact 20 | . . . . . . . . . . . . 20 . . Slashing 152 | . . 1 16 13 34 16 51 21 . . . . . . Piercing . | . . . . . . . . . . . . . . . Sneak Attacks 12 | . . . 4 1 1 . 1 3 . . . 2 . . Combat Hostiles 3 | . . . . . 1 . . 2 . . . . . . Follow-up Attacks . | . . . . . . . . . . . . . . . Damage Inflicted 18710 | . 60 2069 2256 588 264 201 1204 1898 . 3349 1384 4822 . 615 Guns 4725 | . 60 1098 . . . . . . . 898 1384 670 . 615 Cannons 4488 | . . 971 781 353 . . . . . 1611 . 772 . . Explosions 4758 | . . . 970 . . 201 56 . . 840 . 2691 . . Melee 4699 | . . . 505 235 264 . 1148 1898 . . . 649 . . Ramming . | . . . . . . . . . . . . . . . Kinetic 3012 | . 60 749 . 353 . . . . . 426 822 552 . 50 Thermal 3506 | . . 1320 781 . . . . . . 840 . . . 565 Explosive 1482 | . . . 970 . . 201 56 . . . . 255 . . Electromagnetic 118 | . . . . . . . . . . . . 118 . . Impact 649 | . . . . . . . . . . . . 649 . . Slashing 4090 | . . . 505 235 264 . 1148 1898 . . . 40 . . Piercing . | . . . . . . . . . . . . . . . Entropic 5853 | . . . . . . . . . . 2083 562 3208 . . Highest Corruption 17 | . . . . . . . . . . . 4 6 14 17 Average Corruption 7 | . . . . . . . . . . . 4 5 10 14 Corruption Purged . | . . . . . . . . . . . . . . . Corruption Blocked . | . . . . . . . . . . . . . . . Effects 26 | . . . . . . . . . . . 9 4 5 8 Message Errors 6 | . . . . . . . . . . . 3 . 1 2 Matter Fused 8 | . . . . . . . . . . . 3 1 . 4 Heat Flow Errors 4 | . . . . . . . . . . . 1 . 1 2 Energy Discharges 2 | . . . . . . . . . . . 1 1 . . Data Loss (minor) 2 | . . . . . . . . . . . . . 2 . Data Loss (major) 2 | . . . . . . . . . . . 1 1 . . Misfires 1 | . . . . . . . . . . . . 1 . . Misdirections 1 | . . . . . . . . . . . . . 1 . Overload Shots . | . . . . . . . . . . . . . . . Overflow Damage 2408 | . . 4 160 31 . 1 100 908 . 202 . 1002 . . Projectiles 307 | . . 4 . 31 . . . . . 202 . 70 . . Explosions 644 | . . . 56 . . 1 . . . . . 587 . . Melee 1457 | . . . 104 . . . 100 908 . . . 345 . . Knockbacks 11 | . . . . 6 . . . . . . . 5 . . Impact 5 | . . . . . . . . . . . . 5 . . Kinetic 3 | . . . . 3 . . . . . . . . . . Secondary 3 | . . . . 3 . . . . . . . . . . Self-Inflicted Damage 493 | . . . 60 . . . . . . 11 . 422 . . Shots 6 | . . . 2 . . . . . . 1 . 3 . . Rammed . | . . . . . . . . . . . . . . . Targets Rammed . | . . . . . . . . . . . . . . . Kicked . | . . . . . . . . . . . . . . . Crushed . | . . . . . . . . . . . . . . . Highest Temperature 1315 | . . 380 609 28 344 511 306 324 . . 408 419 125 1315 Average Temperature 187 | . . 135 197 15 116 240 143 140 . . 236 225 63 786 Received Heat Transfer 966 | . . 366 321 . 24 . 45 . 9 27 48 126 . . Effects 101 | . . 22 16 . 4 29 1 . . . 1 2 . 26 Shutdowns 25 | . . 5 5 . 1 11 . . . . . . . 3 Energy Bleed 15 | . . 5 1 . 1 4 1 . . . . 1 . 2 Interference 26 | . . 9 3 . 1 8 . . . . . . . 5 Matter Decay 7 | . . . 3 . 1 1 . . . . . 1 . 1 Short Circuit 9 | . . 3 1 . . 2 . . . . 1 . . 2 Damage (minor) 8 | . . . 2 . . 3 . . . . . . . 3 Damage (major) 6 | . . . 1 . . . . . . . . . . 5 Damage (core) 5 | . . . . . . . . . . . . . . 5 Siege Activations . | . . . . . . . . . . . . . . . Martial Activations . | . . . . . . . . . . . . . . . Shielding Activations . | . . . . . . . . . . . . . . . Robots Disrupted . | . . . . . . . . . . . . . . . Combat Hostiles . | . . . . . . . . . . . . . . . Robots Corrupted 8 | . . . . 1 . . . . . . . 7 . . Combat Hostiles 3 | . . . . 1 . . . . . . . 2 . . Parts Fried 10 | . . . . . . . . . . . . 10 . . Impact Corruptions 15 | . . . . 3 . . . . . . . 12 . . Robots Melted 2 | . . . 2 . . . . . . . . . . . Combat Hostiles 1 | . . . 1 . . . . . . . . . . . Parts Melted 4 | . . . 2 . . . . . . . . . . 2 Heat Transferred 5448 | . . 2701 1406 . . . . . . 675 . . . 666 Parts Sabotaged 1 | . . . . . . . . . . . . 1 . . Parts Stolen . | . . . . . . . . . . . . . . . Parts Stripped . | . . . . . . . . . . . . . . . Power Chain Reactions . | . . . . . . . . . . . . . . . Alert | -11 -10 -9 -9 -8 -7 -6 -5 -5 -5 -5 -4 -4 -4 -4 ------- Run | Yrd Mat Mat Sto Mat Fac Fac Fac Upp Upp War Pro Fac Was Fac Maximum Alert Level 2 | . . 1 2 . . . . . . . . 2 . . Low Security (%) 83 | 100 100 81 44 100 100 100 100 . . . . 78 100 100 Level 1 10 | . . 18 14 . . . . . . . . 19 . . Level 2 6 | . . . 40 . . . . . . . . 2 . . Level 3 . | . . . . . . . . . . . . . . . Level 4 . | . . . . . . . . . . . . . . . Level 5 . | . . . . . . . . . . . . . . . High Security . | . . . . . . . . . . . . . . . Max Security . | . . . . . . . . . . . . . . . Peak Influence 619 | . 57 298 619 194 36 140 161 . . . . 459 106 167 Initial 187 | . . . . 187 36 . 45 . . . . 36 106 32 Average 105 | . 20 113 255 146 9 9 74 . . . . 90 88 27 Influence Increases 4952 | . 57 846 1018 184 126 157 358 185 90 290 565 849 . 227 Destroy 0b10 Robot/C 2500 | . 40 580 420 120 40 . 120 60 . 260 400 300 . 160 Destroy 0b10 Robot/NC 240 | . 5 60 60 10 . 10 15 5 . . . 75 . . Destroy Leader 612 | . 12 188 180 44 20 . 30 . . . 30 88 . 20 Disable Machine 200 | . . . 64 . 16 76 20 . . . . 24 . . Destroy Structure 785 | . . 3 279 10 20 71 128 . . . . 272 . 2 Partial Spotted 90 | . . . 15 . 30 . 15 . . . . 30 . . Lose Combat Pursuer 525 | . . 15 . . . . 30 120 90 30 135 60 . 45 Influence Decreases 4785 | . 57 846 399 692 237 32 323 345 45 235 590 480 383 121 Entered New Map 1222 | . . . . 432 75 . 80 84 . 45 100 39 338 29 Time Decay 3147 | . 57 816 359 240 161 32 223 231 45 130 425 291 45 92 Lost Part 416 | . . 30 40 20 1 . 20 30 . 60 65 150 . . Squads Dispatched 12 | . . 1 3 . 2 1 1 . . . 1 3 . . Investigation 3 | . . . 1 . . 1 . . . . . 1 . . Extermination 3 | . . . . . 1 . . . . . . 2 . . Reinforcement 5 | . . 1 2 . 1 . 1 . . . . . . . Assault 1 | . . . . . . . . . . . 1 . . . Garrison . | . . . . . . . . . . . . . . . Intercept . | . . . . . . . . . . . . . . . Searches Triggered . | . . . . . . . . . . . . . . . Construction Impeded 1 | . . . 1 . . . . . . . . . . . Haulers Reinforced . | . . . . . . . . . . . . . . . Active Scanning Responses . | . . . . . . . . . . . . . . . Cargo Convoy Interrupts 1 | . . . . . . . . . . . . 1 . . Stealth | -11 -10 -9 -9 -8 -7 -6 -5 -5 -5 -5 -4 -4 -4 -4 --------- Run | Yrd Mat Mat Sto Mat Fac Fac Fac Upp Upp War Pro Fac Was Fac Distress Signals 5 | . 1 3 . . . . . . . . . 1 . . Communications Jammed 69 | . . . . . . . . . . 69 . . . . Distress Signals 69 | . . . . . . . . . . 69 . . . . Times Spotted 229 | . 4 35 22 7 4 . 17 9 6 56 20 32 5 12 Peak Tracking Total 17 | . 3 4 5 3 2 1 6 7 6 17 9 9 5 4 Tactical Retreats 21 | . . 1 . . . . 2 3 3 1 4 4 1 2 Traps | -11 -10 -9 -9 -8 -7 -6 -5 -5 -5 -5 -4 -4 -4 -4 ------- Run | Yrd Mat Mat Sto Mat Fac Fac Fac Upp Upp War Pro Fac Was Fac Traps Triggered 13 | . 2 . 6 . 1 1 . . . . . 3 . . Indirectly . | . . . . . . . . . . . . . . . Trap Hack Attempts . | . . . . . . . . . . . . . . . Triggered . | . . . . . . . . . . . . . . . Disarmed . | . . . . . . . . . . . . . . . Reprogrammed . | . . . . . . . . . . . . . . . Reused . | . . . . . . . . . . . . . . . Traps Extracted . | . . . . . . . . . . . . . . . Installed . | . . . . . . . . . . . . . . . Triggered . | . . . . . . . . . . . . . . . Machines | -11 -10 -9 -9 -8 -7 -6 -5 -5 -5 -5 -4 -4 -4 -4 ---------- Run | Yrd Mat Mat Sto Mat Fac Fac Fac Upp Upp War Pro Fac Was Fac Machines Disabled 52 | . . . 16 . 4 19 5 . . 1 1 6 . . Max in Single Turn 15 | . . . 2 . 1 15 4 . . 1 1 3 . . Machines Repaired . | . . . . . . . . . . . . . . . Machines Dismantled . | . . . . . . . . . . . . . . . Machines Sabotaged . | . . . . . . . . . . . . . . . Overloaded Fab Kills . | . . . . . . . . . . . . . . . Hacking | -11 -10 -9 -9 -8 -7 -6 -5 -5 -5 -5 -4 -4 -4 -4 --------- Run | Yrd Mat Mat Sto Mat Fac Fac Fac Upp Upp War Pro Fac Was Fac Machines Accessed 7 | . . . 4 . 1 . . 1 . 1 . . . . Terminals 5 | . . . 4 . 1 . . . . . . . . . Fabricators . | . . . . . . . . . . . . . . . Repair Stations . | . . . . . . . . . . . . . . . Recycling Units . | . . . . . . . . . . . . . . . Scanalyzers . | . . . . . . . . . . . . . . . Garrison Access . | . . . . . . . . . . . . . . . Total Hacks 12 | . . . 9 . 1 . . 1 . 1 . . . . Successful 6 | . . . 3 . 1 . . 1 . 1 . . . . Failed 6 | . . . 6 . . . . . . . . . . . Catastrophic . | . . . . . . . . . . . . . . . Database Lockouts . | . . . . . . . . . . . . . . . Manual . | . . . . . . . . . . . . . . . Terminals 10 | . . . 9 . 1 . . . . . . . . . Fabricators . | . . . . . . . . . . . . . . . Repair Stations . | . . . . . . . . . . . . . . . Recycling Units . | . . . . . . . . . . . . . . . Scanalyzers . | . . . . . . . . . . . . . . . Garrison Access . | . . . . . . . . . . . . . . . Terminal Hacks 6 | . . . 3 . 1 . . 1 . 1 . . . . Open Door 5 | . . . 3 . . . . 1 . 1 . . . . Open DSF 1 | . . . . . 1 . . . . . . . . . Fabricator Hacks . | . . . . . . . . . . . . . . . Repair Station Hacks . | . . . . . . . . . . . . . . . Recycling Unit Hacks . | . . . . . . . . . . . . . . . Scanalyzer . | . . . . . . . . . . . . . . . Garrison Access Hacks . | . . . . . . . . . . . . . . . Unauthorized Hacks . | . . . . . . . . . . . . . . . Terminals . | . . . . . . . . . . . . . . . Fabricators . | . . . . . . . . . . . . . . . Repair Stations . | . . . . . . . . . . . . . . . Recycling Units . | . . . . . . . . . . . . . . . Scanalyzers . | . . . . . . . . . . . . . . . Garrison Access . | . . . . . . . . . . . . . . . Data Cores Recovered 4 | . . . 2 . . . 1 . . . . 1 . . Used . | . . . . . . . . . . . . . . . Hacking Detections 3 | . . . 3 . . . . . . . . . . . Full Trace Events 1 | . . . 1 . . . . . . . . . . . Feedback Events . | . . . . . . . . . . . . . . . Feedback Blocked . | . . . . . . . . . . . . . . . Robot Schematics Acquired . | . . . . . . . . . . . . . . . Robots Built . | . . . . . . . . . . . . . . . Authchips . | . . . . . . . . . . . . . . . Time . | . . . . . . . . . . . . . . . Total Robot Build Rating . | . . . . . . . . . . . . . . . Part Schematics Acquired . | . . . . . . . . . . . . . . . Parts Built . | . . . . . . . . . . . . . . . Authchips . | . . . . . . . . . . . . . . . Time . | . . . . . . . . . . . . . . . Total Part Build Rating . | . . . . . . . . . . . . . . . Parts Repaired . | . . . . . . . . . . . . . . . Time . | . . . . . . . . . . . . . . . Parts Recycled . | . . . . . . . . . . . . . . . Recycled Matter . | . . . . . . . . . . . . . . . Retrieved Matter . | . . . . . . . . . . . . . . . Retrieved Components . | . . . . . . . . . . . . . . . Parts Scanalyzed . | . . . . . . . . . . . . . . . Part Schematics Acquired . | . . . . . . . . . . . . . . . Parts Damaged . | . . . . . . . . . . . . . . . Bothacking | -11 -10 -9 -9 -8 -7 -6 -5 -5 -5 -5 -4 -4 -4 -4 ------------ Run | Yrd Mat Mat Sto Mat Fac Fac Fac Upp Upp War Pro Fac Was Fac Used RIF Installer . | . . . . . . . . . . . . . . . Robots Hacked . | . . . . . . . . . . . . . . . Non-combat . | . . . . . . . . . . . . . . . Combat . | . . . . . . . . . . . . . . . Robot Hacks Applied . | . . . . . . . . . . . . . . . Relay Couplers Released . | . . . . . . . . . . . . . . . Fabnet Peak Effective % . | . . . . . . . . . . . . . . . Robots Rewired . | . . . . . . . . . . . . . . . Allies Hacked . | . . . . . . . . . . . . . . . Hacks Repelled . | . . . . . . . . . . . . . . . Allies | -11 -10 -9 -9 -8 -7 -6 -5 -5 -5 -5 -4 -4 -4 -4 -------- Run | Yrd Mat Mat Sto Mat Fac Fac Fac Upp Upp War Pro Fac Was Fac Total Allies . | . . . . . . . . . . . . . . . Largest Group . | . . . . . . . . . . . . . . . Highest-Rated Group . | . . . . . . . . . . . . . . . Highest-Rated Ally . | . . . . . . . . . . . . . . . Total Orders . | . . . . . . . . . . . . . . . Ally Attacks . | . . . . . . . . . . . . . . . Total Damage . | . . . . . . . . . . . . . . . Kills . | . . . . . . . . . . . . . . . Allies Corrupted . | . . . . . . . . . . . . . . . Allies Melted 3 | . . . . . . . . . . 3 . . . . Intel | -11 -10 -9 -9 -8 -7 -6 -5 -5 -5 -5 -4 -4 -4 -4 ------- Run | Yrd Mat Mat Sto Mat Fac Fac Fac Upp Upp War Pro Fac Was Fac Active Infowar (turns) 3594 | 1 . . 124 322 386 261 316 350 113 720 623 378 . . Sensors 1011 | . . . 124 309 307 226 45 . . . . . . . IFF 2667 | . . . . . . 167 316 350 113 720 623 378 . . Seismic 1 | 1 . . . . . . . . . . . . . . T.N.C. 542 | . . . . 13 386 143 . . . . . . . . Machine Analysis 2281 | . . . . 100 331 245 316 350 113 720 106 . . . Jamming 993 | . . . . . . . . 349 113 531 . . . . Robot Analysis Total . | . . . . . . . . . . . . . . . Derelict Logs Recovered 2 | . . . . . . . . 1 . . 1 . . . Drone Launches . | . . . . . . . . . . . . . . . Drone Recoveries . | . . . . . . . . . . . . . . . Exploration | -11 -10 -9 -9 -8 -7 -6 -5 -5 -5 -5 -4 -4 -4 -4 ------------- Run | Yrd Mat Mat Sto Mat Fac Fac Fac Upp Upp War Pro Fac Was Fac Turns Passed 6060 | 27 103 1306 616 322 386 269 316 350 113 720 623 590 65 254 Spaces Moved 8574 | 37 158 1448 969 261 853 529 499 912 397 829 739 587 131 225 Core 321 | 37 158 121 . . . . . . . . . . 1 4 Treads . | . . . . . . . . . . . . . . . Legs 131 | . . . . . . . . . . . . . . 131 Wheels . | . . . . . . . . . . . . . . . Hover 90 | . . 90 . . . . . . . . . . . . Flight 8032 | . . 1237 969 261 853 529 499 912 397 829 739 587 130 90 Fastest Speed 20 | 50 50 31 28 27 25 25 25 25 28 27 20 20 35 45 Average Speed 39 | 50 54 43 31 32 25 25 25 28 28 62 55 49 39 79 Slowest Speed 435 | 50 100 180 107 34 107 25 25 102 28 180 435 120 150 150 Overloaded Moves 11 | . . . . . . . . . . . . . 11 . Propulsion Burnouts . | . . . . . . . . . . . . . . . Robots Hopped 14 | . . 3 6 . 5 . . . . . . . . . Potential Cave-ins . | . . . . . . . . . . . . . . . Cave-ins Triggered . | . . . . . . . . . . . . . . . Exploration Rate (%) 47 | 3 25 95 93 26 24 16 17 84 60 86 79 16 79 6 Regions Visited 14 Branch Regions 5 Pre-discovered Areas 1 | . . . 1 . . . . . . . . . . . Known Exits Taken 12 | 1 1 1 1 1 1 1 1 1 1 1 1 . . . Unknown Exits Taken . | . . . . . . . . . . . . . . . Scrap Searched 3 | . . . . . . . . 2 1 . . . . . Spaces Dug 94 | . . 1 14 8 20 14 28 2 . . . 7 . . Terrain Destroyed 747 | . . 1 354 10 20 82 68 2 . 21 46 143 . . Melee 79 | . . 1 . 7 20 14 28 2 . . . 7 . . Projectile 77 | . . . . 3 . . . . . 18 46 10 . . AOE 591 | . . . 354 . . 68 40 . . 3 . 126 . . Terrain Rammed . | . . . . . . . . . . . . . . . Walls Destroyed . | . . . . . . . . . . . . . . . Machines Disabled . | . . . . . . . . . . . . . . . Actions | -11 -10 -9 -9 -8 -7 -6 -5 -5 -5 -5 -4 -4 -4 -4 --------- Run | Yrd Mat Mat Sto Mat Fac Fac Fac Upp Upp War Pro Fac Was Fac Total 10492 | 45 171 1972 1161 462 966 636 591 975 398 982 898 813 145 277 Wait 1105 | . . 374 44 160 71 75 33 35 2 88 92 118 7 6 Move 8536 | 36 157 1441 956 260 844 528 498 911 396 829 738 587 130 225 Hop 12 | . . 3 6 . 3 . . . . . . . . . Pick Up 80 | 5 1 17 12 7 4 . . 1 . 5 7 6 3 12 Fast Attach 40 | . . . 8 . 4 6 4 . . 7 4 7 . . Attach 89 | 3 4 19 14 4 3 . . 4 . 3 9 9 4 13 Detach 17 | 1 4 3 2 . . . . 1 . 2 1 1 1 1 Swap 8 | . . . 2 1 . 1 . . . 3 1 . . . Drop 47 | . . 8 7 1 3 6 2 2 . 3 3 8 . 4 Fire 350 | . 5 106 76 16 . 4 3 . . 42 43 39 . 16 Melee 172 | . . 1 16 13 34 16 51 21 . . . 20 . . Ram . | . . . . . . . . . . . . . . . Kick . | . . . . . . . . . . . . . . . Crush . | . . . . . . . . . . . . . . . Escape Stasis 36 | . . . 18 . . . . . . . . 18 . . Rewire . | . . . . . . . . . . . . . . . Trap . | . . . . . . . . . . . . . . . Miscellaneous . | . . . . . . . . . . . . . . . Route ------- -11/Scrapyard -10/Materials -9/Materials (discovered 5 exits: *Mat x2 / *Min / *Sto x2) -9/Storage -8/Materials -7/Factory (discovered 2 exits: *Fac / *Low) -6/Factory -5/Factory -5/Upper Caves -5/Upper Caves (discovered 2 exits: *Fac / *War) -5/Warlord -4/Proximity Caves -4/Factory -4/Waste -4/Factory History --------- Turn | Location | Event 2 | -11/Scrapyard | Met Revision 17 6 | -11/Scrapyard | Identified exit to Materials 6 | -11/Scrapyard | Discovered exit to Materials (range 16) 28 | -11/Scrapyard | Entered Materials 28 | -10/Materials | Evolved 1 slot: Propulsion x1 70 | -10/Materials | Identified exit to Materials 70 | -10/Materials | Discovered exit to Materials (range 12) 131 | -10/Materials | Entered another Materials area 131 | -9/Materials | Evolved 2 slots: Power x1, Propulsion x1 245 | -9/Materials | Identified exit to Storage 245 | -9/Materials | Discovered exit to Storage (range 15) 306 | -9/Materials | Build established: Hacker-Mutant 524 | -9/Materials | Identified exit to Materials 524 | -9/Materials | Discovered exit to Materials (range 5) 592 | -9/Materials | Discovered exit to Materials (range 4) 625 | -9/Materials | Identified exit to Mines 625 | -9/Materials | Discovered exit to Mines (range 8) 826 | -9/Materials | Discovered exit to Storage (range 10) 1115 | -9/Materials | Build established: Hacker-Sprinter 1437 | -9/Materials | Entered Storage 1613 | -9/Storage | Core integrity fell below 50% 1655 | -9/Storage | Build established: Hacker-Mutant 1698 | -9/Storage | Learned location of Armory (-3) 1772 | -9/Storage | Discovered exit to Materials (range 12) 1969 | -9/Storage | Build established: Hacker-Sprinter 2053 | -9/Storage | Entered Materials 2053 | -8/Materials | Evolved 2 slots: Propulsion x2 2349 | -8/Materials | Identified exit to Factory 2349 | -8/Materials | Discovered exit to Factory (range 3) 2375 | -8/Materials | Entered Factory 2375 | -7/Factory | Evolved 2 slots: Utility x2 2524 | -7/Factory | Identified exit to Lower Caves 2524 | -7/Factory | Discovered exit to Lower Caves (range 13) 2650 | -7/Factory | Identified exit to Factory 2650 | -7/Factory | Discovered exit to Factory (range 12) 2761 | -7/Factory | Entered another Factory area 2761 | -6/Factory | Evolved 2 slots: Power x1, Utility x1 3026 | -6/Factory | Identified exit to Factory 3026 | -6/Factory | Discovered exit to Factory (range 15) 3030 | -6/Factory | Entered another Factory area 3030 | -5/Factory | Evolved 2 slots: Utility x1, Weapon x1 3266 | -5/Factory | Identified exit to Upper Caves 3266 | -5/Factory | Discovered exit to Upper Caves (range 9) 3346 | -5/Factory | Entered Upper Caves 3374 | -5/Upper Caves | Encountered a Warlord checkpoint 3476 | -5/Upper Caves | Lost 3 parts (1p1n1w) 3535 | -5/Upper Caves | Identified exit to Upper Caves 3535 | -5/Upper Caves | Discovered exit to Upper Caves (range 8) 3671 | -5/Upper Caves | Learned location of 1 exit from Upper Caves 3696 | -5/Upper Caves | Entered another Upper Caves area 3697 | -5/Upper Caves | Identified exit to Warlord 3712 | -5/Upper Caves | Identified exit to Factory 3712 | -5/Upper Caves | Discovered exit to Factory (range 9) 3755 | -5/Upper Caves | Attracted the attention of an 0b10 checkpoint 3809 | -5/Upper Caves | Entered Warlord 3832 | -5/Warlord | Identified exit to Proximity Caves 3832 | -5/Warlord | Discovered exit to Proximity Caves (range 8) 3909 | -5/Warlord | Visited the Vortex Lab 3909 | -5/Warlord | Found Prototype Energy Gun 3910 | -5/Warlord | Identified Vortex Rail 3912 | -5/Warlord | Found Vortex Rail 3914 | -5/Warlord | Warlord's base attacked by MAIN.C 3917 | -5/Warlord | Found Prototype Energy Cannon 3918 | -5/Warlord | Identified Vortex Cannon 3921 | -5/Warlord | Found Vortex Cannon 3927 | -5/Warlord | Found Prototype Launcher 3928 | -5/Warlord | Identified Vortex Catalyst Activator 3965 | -5/Warlord | Found Prototype Special Weapon 3965 | -5/Warlord | Identified RU-N14's Throwing Claymores v3 4011 | -5/Warlord | Met Warlord 4195 | -5/Warlord | Build established: Hacker-Gladiator 4264 | -5/Warlord | Warlord forces counterattacked 4300 | -5/Warlord | Spotted Executioner 4311 | -5/Warlord | Spotted Executioner 4359 | -5/Warlord | Spotted Striker 4359 | -5/Warlord | Spotted Striker 4372 | -5/Warlord | Destroyed Striker 4376 | -5/Warlord | Destroyed Striker 4376 | -5/Warlord | P-70 Sage assimilated allied 9I-44O(g) 4391 | -5/Warlord | Spotted Executioner 4401 | -5/Warlord | Lost 25 allies 4410 | -5/Warlord | Destroyed 8 combat bots 4410 | -5/Warlord | Lost 5 parts (2p1n1u1w) 4414 | -5/Warlord | Spotted B-75 Beast 4414 | -5/Warlord | Spotted B-86 Titan 4432 | -5/Warlord | Destroyed B-86 Titan 4479 | -5/Warlord | Lost 10 allies 4514 | -5/Warlord | Spotted Striker 4514 | -5/Warlord | Spotted Striker 4529 | -5/Warlord | Entered Proximity Caves 4536 | -4/Proximity Caves | Attracted the attention of an 0b10 checkpoint 4555 | -4/Proximity Caves | Lost 4 allies 4589 | -4/Proximity Caves | Lost 4 parts (3n1u) 4590 | -4/Proximity Caves | Attracted the attention of an 0b10 outpost 4666 | -4/Proximity Caves | Lost 3 parts (1p1n1u) 4739 | -4/Proximity Caves | Build established: Hacker-Mutant 5116 | -4/Proximity Caves | Learned location of 1 exit from Upper Caves 5144 | -4/Proximity Caves | Discovered exit to Factory (range 7) 5152 | -4/Proximity Caves | Entered Factory 5152 | -4/Factory | Evolved 2 slots: Utility x1, Weapon x1 5561 | -4/Factory | Lost 3 parts (1n2u) 5637 | -4/Factory | Destroyed 7 combat bots 5642 | -4/Factory | Spotted B-86 Titan 5646 | -4/Factory | Lost 6 parts (2p1n1u2w) 5697 | -4/Factory | Cargo convoy interrupted 5722 | -4/Factory | Spotted Executioner 5742 | -4/Factory | Sucked down chute 5742 | -4/Factory | Entered Waste 5752 | -4/Waste | Spotted C-40 Crusher 5755 | -4/Waste | Spotted C-40 Crusher 5755 | -4/Waste | Spotted C-40 Crusher 5757 | -4/Waste | EMP discharged 5757 | -4/Waste | System corruption reached 10% 5761 | -4/Waste | Lost 5 parts (1p2n2w) 5775 | -4/Waste | Spotted C-40 Crusher 5788 | -4/Waste | Spotted C-40 Crusher 5789 | -4/Waste | Identified exit to Factory 5789 | -4/Waste | Discovered exit to Factory (range 12) 5807 | -4/Waste | Entered Factory 6016 | -4/Factory | Core integrity fell below 50% 6033 | -4/Factory | Core integrity fell below 20% 6062 | -4/Factory | Core destroyed Last Messages --------------- System interference averted by Imp. Cryofiber Web. Power failure averted by Imp. Cryofiber Web. System interference averted by Imp. Cryofiber Web. Overheating: System interference. Imp. Cryofiber Web temporarily disabled. Dispersion Rifle temporarily disabled. Power failure, Angular Momentum Engine shutdown. Power failure, Imp. Fusion Compressor shutdown. Overheating: Broken Multireflex Exoskeleton damaged (-162). S-27 Virus destroyed. Slug penetrates Wall. Power failure, Fission Core shutdown. Slug penetrates S-27 Virus. S-27 Virus destroyed. Overheating: Core damaged (-195). Map ----- +----------------------------------------------------+ | ?????????????????????????????????????????????????? | | ?????????????????????????????????????????????????? | | ?????????????????????????????????????????????????? | | ?????????????????????????????????????????????????? | | ?????????????????????????????????????????????????? | | ?????????????????????????????????????????????????? | | ?????????????????????????????????????????????????? | | ?????????????????????????????????????????????????? | | ?????????????????????????????????????????????????? | | ?????????????????????????????????????????????????? | | ????????????????????????? ?????????????????????? | | ????????????????????????? ???????????????????? | | ????????????????????????? ??????????????????? | | ????????????????????????? ??????????????????? | | ????????????????????????? #??????????????????? | | ????????????????????????? #??????????????????? | | ????????????????#########u #??????????????????? | | ????????????????# [!! # #??????????????????? | | ????????????????# !! # #??????????????????? | | ????????????????# ! # #??????????????????? | | ????????????????# # #??????????????????? | | ?###?####???????# #p% #??????????????????? | | ? ? #???????# # = #??????????????????? | | "" """ #???????# # #??????????????????? | | "" """ #???????# ! =#* #??????????????????? | | "" """ ######### =/@ #??????????????????? | | ## # #= #??????????????????? | | "" """ ## """ # # #??????????????????? | | "" """ ## """ # # * #??????????????????? | | "" """ ## """ # # =%[#??????????????????? | | ## # # [%=%#??????????????????? | | #?? # # = =#??????????????????? | | #####+###= [ # +??????????????????? | | + +**=! # # ?????????????????? | | +#####+###### ###+##### # ????????????????? | | #???# #????# #?# #???? #? ???????????????? | | #???# #????# !#???? #?? ??????????????? | | #???# #????# #???? #??????????????????? | | #???# ###### #???? #??????????????????? | | #???# #+#???? ???????????????????? | | ##### #?????? ?????????????????????? | | #??????????????????????????????? | | #??????????????????????????????? | | +??????????????????????????????? | | #??????????????????????????????? | | # #??????????????????????????????? | | #### T######### #??????????????????????????????? | | #???###???????? #??????????????????????????????? | | +####??????????? ???????????????????????????????? | | #????????????????????????????????????????????? | +----------------------------------------------------+ Best States ------------- Heat Dissipation 43 Energy Generation 61 Energy Capacity 510 Matter Stores 300 Matter Capacity 300 Sight Range 16 Robot Scan Range 15 Terrain Scan Density 10 Jamming Range 12 Base Temperature (-) 150 Resistance: KI 35 Resistance: TH 35 Resistance: EX 35 Resistance: EM 35 Resistance: I 35 Resistance: S 35 Resistance: P 35 Power Shielding 66 Propulsion Shielding 33 Melee Speed Boost 20 Phase Shifting 10 Evasion (%) 74 Targeting Accuracy 5 Particle Charging 15 Offensive Hacking 20 Item Schematics ----------------- None Robot Schematics ------------------ None Fabricated ------------ Nothing Repaired ---------- Nothing Alien Tech Used ----------------- None Achievements -------------- A Powerful Ally? Charge!!! Ooh, Shiny! Total Silence Challenges ------------ None Game ------ Seed AlloyMeleeHumpback Manual? 0 Play Time 02:37:26 Cumulative 25.2 hours Start 2025.07.22 @ 18:21:38 End 2025.07.22 @ 21:50:06 Sessions 1 Manual Loads 0 Difficulty Explorer Special Mode None Game No. 27 Rogue 0 Adventurer 0 Explorer 27 Win Type - Total 0 Types 0/0/0/0/0/0/0/0/0/0 Lore% 17 Gallery% 28 Achievement% 23 Wizard Run 0 Options --------- Layout 1 ASCII 0 Keyboard 0 Movement Mouse Keybinds 0 Fullscreen 2 Font 16/SmallcapsGlow Map View 50x35 Zoom Use 0% Tactical HUD 0 Map Filters NONE Filters NONE Steam X RUN: e1edc68a-d6f4-41c1-94c3-3cebeab7e89a